[Event "Czech Extraliga 2023-24"]
[Site "Czech Republic"]
[Date "2024.04.07"]
[Round "11.5"]
[White "Haba, Petr"]
[Black "Jurcik, Marian"]
[Result "1/2-1/2"]
[ECO "D30"]
[WhiteElo "2432"]
[BlackElo "2404"]
[Annotator "TA"]
[PlyCount "29"]
[EventDate "2023.10.14"]
[EventCountry "CZE"]
[SourceTitle "playchess.com"]
[Source "ChessBase"]
[SourceQuality "1"]
[TimeControl "40/5400+30:1800+30"]

{[%evp 9,29,6,14,-6,-12,-10,0,-9,0,-37,-18,-39,-42,-27,-28,-53,-51,-51,-59,-59,-43,-50]} 1. d4 {[%emt 0:00:22]} d5 {[%emt 0:00:49]} 2. c4 {[%emt 0:00:15]} e6 {[%emt 0:01:02]} 3. Nf3 {[%emt 0:00:19]} Nd7 {[%emt 0:00:29]} 4. Nbd2 {[%emt 0:04:36]} Ngf6 {[%emt 0:02:31]} 5. g3 {[%emt 0:01:31]} b6 {[%emt 0:04:55]} 6. cxd5 {[%emt 0:04:04]} exd5 {[%emt 0:00:44]} 7. Bg2 {[%emt 0:00:31]} Bd6 {[%emt 0:07:18]} 8. O-O {[%emt 0:03:29][%cal Oe2e4] The position is equal.} O-O {[%emt 0:02:49]} 9. Nh4 {[%emt 0:05:51]} Re8 {[%emt 0:04:49]} 10. Re1 {[%emt 0:04:49]} Bb7 {[%emt 0:03:05]} 11. a3 {[%emt 0:06:38]} g6 {[%emt 0:08:57]} 12. Nc4 {[%emt 0:16:14]} Bf8 {[%emt 0:01:04] Black is slightly better.} 13. Bg5 {[%emt 0:00:12]} h6 {[%emt 0:08:09]} 14. Bxf6 {[%emt 0:00:12]} Qxf6 {[%emt 0:00:27]} 15. Ne3 {[%emt 0:00:14] Weighted Error Value: White=0.08 (flawless) /Black=0.03 (flawless) .  Inaccurate:     	White=1     	---        OK:         	White=6     	Black=2      Best:        	---       	Black=1} 1/2-1/2

[Event "Czech Extraliga 2023-24"]
[Site "Czech Republic"]
[Date "2024.04.07"]
[Round "11.5"]
[White "Piesik, Piotr"]
[Black "Nagy, Gabor"]
[Result "1/2-1/2"]
[ECO "D36"]
[WhiteElo "2421"]
[BlackElo "2436"]
[Annotator "TA"]
[PlyCount "26"]
[EventDate "2023.10.14"]
[EventCountry "CZE"]
[SourceTitle "playchess.com"]
[Source "ChessBase"]
[SourceQuality "1"]
[TimeControl "40/5400+30:1800+30"]

{[%evp 18,26,16,13,13,11,19,13,15,18,18]} 1. d4 {[%emt 0:00:07]} Nf6 {[%emt 1:31:00]} 2. c4 e6 {[%emt 0:00:00]} 3. Nc3 {[%emt 0:00:22]} d5 {[%emt 0:00:00]} 4. cxd5 {[%emt 0:00:41]} exd5 {[%emt 0:00:00]} 5. Bg5 {[%emt 0:00:05]} Be7 {[%emt 0:00:00]} 6. e3 {[%emt 0:00:15]} h6 {[%emt 0:00:00]} 7. Bh4 {[%emt 0:00:57]} c6 {[%emt 0:00:00]} 8. Bd3 {[%emt 0:00:22]} Ne4 {[%emt 0:00:00]} 9. Bxe7 {[%emt 0:06:18]} Qxe7 {[%emt 0:00:00]} 10. Qc2 {[%emt 0:00:42][%cal Oc3d5] [#] aiming for Nxd5! The position is equal.} Bf5 {[%emt 0:00:00]} 11. Nge2 {[%emt 0:07:52]} Nxc3 {[%emt 0:00:00]} 12. bxc3 {[%emt 0:17:11]} Bxd3 {[%emt 0:00:00]} 13. Qxd3 {[%emt 0:00:03]} Nd7 {[%emt 0:00:00] An uneventful encounter.   Weighted Error Value: White=0.01 (flawless) /Black=0.04 (flawless) .  OK:         	---       	Black=2} 1/2-1/2

[Event "Czech Extraliga 2023-24"]
[Site "Czech Republic"]
[Date "2024.04.07"]
[Round "11.5"]
[White "Jansa, Vlastimil"]
[Black "Blahynka, Martin"]
[Result "0-1"]
[ECO "B92"]
[WhiteElo "2322"]
[BlackElo "2375"]
[Annotator "RC"]
[PlyCount "108"]
[EventDate "2023.10.14"]
[EventCountry "CZE"]
[SourceTitle "playchess.com"]
[Source "ChessBase"]
[SourceQuality "1"]
[TimeControl "40/5400+30:1800+30"]

1. e4 {[%emt 0:00:05]} c5 {[%emt 0:00:24]} 2. Nf3 {[%emt 0:00:07]} d6 {[%emt 0:00:04]} 3. d4 {[%emt 0:00:21]} cxd4 {[%emt 0:00:05]} 4. Nxd4 {[%emt 0:00:06]} Nf6 {[%emt 0:00:04]} 5. Nc3 {[%emt 0:00:07]} a6 {[%emt 0:00:43]} 6. Be2 {[%emt 0:01:17]} e5 {[%emt 0:00:37]} 7. Nb3 {[%emt 0:00:06]} Be7 {[%emt 0:01:39]} 8. O-O {[%emt 0:02:14]} O-O {[%emt 0:00:40]} 9. Kh1 {[%emt 0:00:32]} Qc7 {[%emt 0:14:26]} 10. a4 {[%emt 0:05:22]} Be6 {[%emt 0:04:12]} 11. f4 {[%emt 0:03:50]} Rd8 {[%emt 0:11:13]} 12. f5 {[%emt 0:11:23]} Bc4 {[%emt 0:03:40]} 13. Bg5 {[%emt 0:02:06]} Nbd7 {[%emt 0:03:45]} 14. Nd2 {[%emt 0:14:14]} Bxe2 {[%emt 0:08:27]} 15. Qxe2 {[%emt 0:01:20]} Rac8 {[%emt 0:18:13]} 16. Rf3 {[%emt 0:04:43]} Kf8 {[%emt 0:16:54]} 17. b3 {[%emt 0:05:12]} Ng8 {[%emt 0:06:14]} 18. Bxe7+ {[%emt 0:27:56]} Nxe7 {[%emt 0:00:06]} 19. Nc4 {[%emt 0:00:07]} Nf6 {[%emt 0:01:36]} 20. Rd1 {[%emt 0:02:05]} Nc6 {[%emt 0:01:12]} 21. Rg3 {[%emt 0:02:14]} Nd4 {[%emt 0:00:24]} 22. Qe3 {[%emt 0:06:39]} d5 {[%emt 0:04:17]} 23. Nxe5 {[%emt 0:05:09]} Qxe5 {[%emt 0:00:11]} 24. Qxd4 {[%emt 0:01:02]} Qxd4 {[%emt 0:00:12]} 25. Rxd4 {[%emt 0:04:43]} Nxe4 {[%emt 0:01:14]} 26. Nxe4 {[%emt 0:00:00]} dxe4 {[%emt 0:00:09]} 27. Rxd8+ {[%emt 0:00:00]} Rxd8 {[%emt 0:00:03]} 28. h3 {[%emt 0:00:00]} Rc8 {[%emt 0:03:04]} 29. Re3 {[%emt 0:00:00]} Rxc2 {[%emt 0:00:11]} 30. Rxe4 {[%emt 0:00:00]} Rc5 {[%emt 0:00:34]} 31. g4 {[%emt 0:00:00]} a5 {[%emt 0:00:40]} 32. Re3 {[%emt 0:00:16]} Rc2 {[%emt 0:00:28]} 33. Re5 {[%emt 0:00:42]} Rc3 {[%emt 0:00:27]} 34. Rb5 {[%emt 0:00:07]} Rxh3+ {[%emt 0:00:38]} 35. Kg2 {[%emt 0:00:07]} Rd3 {[%emt 0:00:24]} 36. Rxb7 {[%emt 0:00:16]} h6 {[%emt 0:00:44]} 37. Kf2 {[%emt 0:00:11]} Kg8 {[%emt 0:00:29]} 38. Rb5 {[%emt 0:02:12]} Kh7 {[%emt 0:00:21]} 39. Ke2 {[%emt 0:00:24]} Rg3 {[%emt 0:00:07]} 40. Kd2 {[%emt 0:00:08]} g5 {[%emt 0:00:53]} 41. fxg6+ {[%emt 0:30:59]} fxg6 {[%emt 0:02:58]} 42. Kc2 {[%emt 0:00:00]} Rxg4 {[%emt 0:01:44]} 43. Rxa5 {[%emt 0:00:00]} h5 {[%emt 0:00:12]} 44. Rd5 {[%emt 0:00:00]} h4 {[%emt 0:01:58]} 45. a5 {[%emt 0:00:00]} h3 {[%emt 0:01:17]} 46. Rd3 {[%emt 0:00:00]} Rg2+ {[%emt 0:03:48]} 47. Kc3 {[%emt 0:00:00]} h2 {[%emt 0:00:11]} 48. Rh3+ {[%emt 0:00:00]} Kg7 {[%emt 0:00:09]} 49. Kb4 {[%emt 0:00:00]} g5 {[%emt 0:01:18]} 50. a6 {[%emt 0:00:00]} g4 {[%emt 0:00:27]} 51. Rh4 {[%emt 0:00:00]} g3 {[%emt 0:00:13]} 52. Rh3 {[%emt 0:00:00]} Kf6 {[%emt 0:05:40]} 53. Kb5 {[%emt 0:00:00]} Ra2 {[%emt 0:00:22]} 54. b4 {[%emt 0:00:00]} Ra1 {[%emt 0:00:54]} 0-1

[Event "Czech Extraliga 2023-24"]
[Site "Czech Republic"]
[Date "2024.04.07"]
[Round "11.6"]
[White "Straka, Vojtech"]
[Black "Burdalev, Kirill"]
[Result "1/2-1/2"]
[ECO "D94"]
[WhiteElo "2439"]
[BlackElo "2338"]
[Annotator "TA"]
[PlyCount "61"]
[EventDate "2023.10.14"]
[EventCountry "CZE"]
[SourceTitle "playchess.com"]
[Source "ChessBase"]
[SourceQuality "1"]
[TimeControl "40/5400+30:1800+30"]

{[%evp 12,61,26,15,20,19,26,3,13,14,12,16,18,0,27,0,0,0,8,0,0,0,13,0,28,9,12,0,0,0,0,0,6,0,0,0,0,0,0,0,0,0,0,-21,-25,-20,0,0,0,0,0,0]} 1. c4 {[%emt 0:00:04]} c6 {[%emt 0:02:02]} 2. Nf3 {[%emt 0:00:13]} d5 {[%emt 0:00:09]} 3. e3 {[%emt 0:00:08]} Nf6 {[%emt 0:00:35]} 4. Nc3 {[%emt 0:00:11]} g6 {[%emt 0:12:56]} 5. d4 {[%emt 0:00:40]} Bg7 {[%emt 0:00:03]} 6. h3 {[%emt 0:00:10]} O-O {[%emt 0:00:59]} 7. Be2 {[%emt 0:00:07]} e6 {[%emt 0:07:58]} 8. O-O {[%emt 0:02:46]} Nbd7 {[%emt 0:00:02]} 9. b3 {[%emt 0:10:46]} Ne4 {[%emt 0:02:35]} 10. Bb2 {[%emt 0:02:18]} Nxc3 {[%emt 0:07:47]} 11. Bxc3 {[%emt 0:00:16]} b6 {[%emt 0:00:02]} 12. Rc1 {[%emt 0:04:53]} Bb7 {[%emt 0:00:44]} 13. Qd2 {[%emt 0:06:21]} a5 {[%emt 0:13:17]} 14. Rfd1 {[%emt 0:02:26]} Qe7 {[%emt 0:00:07]} 15. c5 {[%emt 0:15:04]} Qd8 {[%emt 0:17:40]} 16. cxb6 {[%emt 0:03:57]} Qxb6 {[%emt 0:00:03]} 17. Ne1 {[%emt 0:04:55]} Rfc8 {[%emt 0:05:38]} 18. Nd3 {[%emt 0:00:42]} Qa7 {[%emt 0:01:15]} 19. Rc2 {[%emt 0:05:28]} a4 {[%emt 0:05:48]} 20. bxa4 {[%emt 0:08:01]} Qxa4 {[%emt 0:00:07]} 21. Bb4 {[%emt 0:00:16]} Bf8 {[%emt 0:03:04]} 22. Rdc1 {[%emt 0:12:27]} Ba6 {[%emt 0:00:58] [#] And now ...Bxd3 would win.} 23. Bxf8 {[%emt 0:03:14]} Bxd3 {[%emt 0:00:13]} 24. Qxd3 {[%emt 0:01:35]} Kxf8 {[%emt 0:00:14]} 25. Bd1 {[%emt 0:01:06]} Qb4 {[%emt 0:04:41]} 26. Be2 {[%emt 0:01:08]} Ra3 {[%emt 0:00:23]} 27. Qd2 {[%emt 0:01:48]} Qxd2 {[%emt 0:01:48]} 28. Rxd2 {[%emt 0:00:02]} Rca8 {[%emt 0:00:14] The position is equal.} 29. Rxc6 {[%emt 0:02:12]} Rxa2 {[%emt 0:00:05]} 30. Rxa2 {[%emt 0:00:15]} Rxa2 {[%emt 0:00:08]} 31. Bf3 {[%emt 0:12:31] An interesting draw.   Weighted Error Value: White=0.06 (flawless) /Black=0.04 (flawless) .  Inaccurate:     	White=1     	Black=2      OK:         	White=6     	Black=11} 1/2-1/2

[Event "Czech Extraliga 2023-24"]
[Site "Czech Republic"]
[Date "2024.04.07"]
[Round "11.6"]
[White "Nemec, Jachym"]
[Black "Sasikiran, Krishnan"]
[Result "0-1"]
[ECO "E53"]
[WhiteElo "2416"]
[BlackElo "2570"]
[Annotator "TA"]
[PlyCount "92"]
[EventDate "2023.10.14"]
[EventCountry "CZE"]
[SourceTitle "playchess.com"]
[Source "ChessBase"]
[SourceQuality "1"]
[TimeControl "40/5400+30:1800+30"]

{[%evp 23,92,0,12,8,14,11,25,32,35,29,43,0,24,22,8,-37,-49,-110,-74,-685,-685,-649,-658,-912,-469,-450,-210,-381,-370,-373,-372,-370,-342,-334,-293,-290,-274,-223,31,-33,8,-31,-29,-16,-24,-229,-217,-275,-218,-122,-185,-280,-162,-268,-164,-219,-219,-196,-193,-149,-114,-114,-137,-562,-535,-591,-569,-994,-994,-945,-843]} 1. d4 {[%emt 0:00:03]} Nf6 {[%emt 0:00:40]} 2. c4 {[%emt 0:00:05]} e6 {[%emt 0:00:13]} 3. Nc3 {[%emt 0:00:17]} Bb4 {[%emt 0:00:11]} 4. e3 {[%emt 0:00:26]} O-O {[%emt 0:00:20]} 5. Bd3 {[%emt 0:00:13]} d5 {[%emt 0:00:16]} 6. a3 {[%emt 0:00:16]} Bxc3+ {[%emt 0:01:10]} 7. bxc3 {[%emt 0:00:06]} dxc4 {[%emt 0:00:11]} 8. Bxc4 {[%emt 0:00:04]} c5 {[%emt 0:00:21]} 9. Nf3 {[%emt 0:00:17]} Qc7 {[%emt 0:07:01]} 10. Be2 {[%emt 0:00:06]} b6 {[%emt 0:02:02]} 11. Bb2 {[%emt 0:01:16]} Bb7 {[%emt 0:03:19]} 12. O-O {[%emt 0:00:19]} Nbd7 {[%emt 0:01:14]} 13. Nd2 {[%emt 0:03:39]} e5 {[%emt 0:05:43]} 14. a4 {[%emt 0:01:14]} Rad8 {[%emt 0:06:55]} 15. Qb3 {[%emt 0:03:13] White has an edge.} Rfe8 {[%emt 0:08:19]} 16. Rfd1 {[%emt 0:07:30]} Nf8 {[%emt 0:09:21]} 17. Nc4 {[%emt 0:20:35]} Bd5 {[%emt 0:07:57]} (17... Ng6 $5) 18. Qc2 {[%emt 0:07:03]} Ng6 {[%emt 0:09:13]} 19. Nxe5 {[%emt 0:08:11]} cxd4 $1 {[%emt 0:04:54]} 20. Nxg6 {[%emt 0:27:43]} (20. exd4 $15 Nxe5 21. dxe5 Qxe5 22. c4 Qxe2 23. Qxe2 Rxe2 24. Bxf6 gxf6 25. a5) 20... dxe3 $17 {[%emt 0:03:37]} 21. Nh4 $2 {[%emt 0:01:54][%mdl 8192]} (21. f3 $17 hxg6 (21... fxg6 22. c4 $15) 22. c4) 21... exf2+ $19 {[%emt 0:04:23]} 22. Kh1 {[%emt 0:00:06]} Qf4 {[%emt 0:04:49] Repels Bf3} 23. Nf3 {[%emt 0:00:21]} Ng4 {[%emt 0:05:15] ( -> ...Bxf3)} 24. Rd4 {[%emt 0:02:11]} Be4 {[%emt 0:09:58]} (24... Ne3 $142 25. Qxh7+ Kxh7 26. Rxf4 Bxf3 27. gxf3 (27. Rxf3 $2 Nd1 $19) 27... Nc2) 25. Qxe4 {[%emt 0:07:12]} (25. Qd2 Qc7 26. Ne5 (26. h3 Bxf3 27. Qf4 Rxe2 28. Rf1 Re1 29. hxg4 Rxf1+ 30. Kh2 Qxf4+ 31. Rxf4 Rh1+ 32. Kg3 f1=Q 33. Rf5 Qxg2+ 34. Kf4 Bxg4 35. Kg5 Qe4 36. Rf4 Qg6#) 26... Nxe5 27. Rf1) 25... Qxe4 {[%emt 0:01:33]} 26. Rxe4 {[%emt 0:00:04]} Rxe4 {[%emt 0:00:24]} 27. Bf1 {[%emt 0:00:44]} Ne3 {[%emt 0:00:58]} 28. g3 {[%emt 0:02:07]} Nd1 {[%emt 0:00:57]} 29. Bc1 {[%emt 0:00:14]} Re1 $1 {[%emt 0:03:06]} 30. Kg2 {[%emt 0:00:06] [#]} Rde8 $2 {[%emt 0:00:36]} (30... Nxc3 31. Kxf2 Red1 32. Bc4 $17) (30... Ne3+ $1 $19 31. Bxe3 Rxa1) 31. Ra2 {[%emt 0:04:45]} ({White should play} 31. Ra3 $14) 31... h6 {[%emt 0:00:13][%cal Og7g5]} 32. Rc2 {[%emt 0:00:52]} g5 {[%emt 0:00:42] And now ...g4 would win.} 33. h3 {[%emt 0:00:29]} f5 $36 {[%emt 0:00:29][%cal Of5f4][%mdl 2048] White is under pressure.} 34. g4 $2 {[%emt 0:02:35]} (34. Bd2 $11 {and White has nothing to worry.}) 34... f4 {[%emt 0:00:34]} 35. Bd2 {[%emt 0:00:42]} Ne3+ {[%emt 0:00:33]} 36. Bxe3 {[%emt 0:00:06]} fxe3 {[%emt 0:00:13]} 37. Nd4 {[%emt 0:00:54]} (37. Re2 $142 Ra1 38. Nd4) 37... Kf7 {[%emt 0:00:33]} (37... h5 $142 {aiming for ...hxg4.} 38. gxh5 Re4 39. Bc4+ Kh8) 38. Re2 {[%emt 0:00:43]} (38. Rb2 {only move.}) 38... Re4 {[%emt 0:00:43]} 39. Nf5 {[%emt 0:00:13]} (39. Nc2 $142 Rxe2 40. Bxe2) 39... Kf6 {[%emt 0:00:30]} 40. c4 {[%emt 0:00:43]} a5 {[%emt 0:00:29]} ({Don't do} 40... Rxc4 41. Rxe3 Rxe3 (41... Rxa4 42. Rf3 $17) 42. Bxc4 $17) 41. Ng3 {[%emt 0:02:35]} Rxc4 {[%emt 0:18:59] Black has more active pieces.} 42. Rxf2+ {[%emt 0:04:30] [#]} Rf4 $1 {[%emt 0:05:18]} ({Much weaker is} 42... exf2 $6 43. Bxc4 Ra1 44. Bb5 $11) 43. Nh5+ $2 {[%emt 0:07:07][%mdl 8192]} (43. Rf3 $17 {was the crucial defense.}) 43... Ke5 {[%emt 0:01:45] Black is clearly winning.} 44. Nxf4 {[%emt 0:00:05]} exf2 {[%emt 0:01:56]} 45. Nh5 {[%emt 0:01:36]} Ra1 {[%emt 0:00:44]} 46. Bb5 {[%emt 0:00:17] [#]} f1=Q+ $1 {[%emt 0:00:22][%mdl 512] Weighted Error Value: White=0.80/Black=0.48.  Loses game:     	White=3     	---        Missed win:     	---       	Black=1      Mistake:       	White=6     	Black=1      Inaccurate:     	White=4     	Black=2      OK:         	White=10    	Black=5      Best:        	White=4     	Black=5      Strong:       	---       	Black=3} 0-1

[Event "Czech Extraliga 2023-24"]
[Site "Czech Republic"]
[Date "2024.04.07"]
[Round "11.6"]
[White "Mladek, Richard"]
[Black "Cech, Pavel"]
[Result "1-0"]
[ECO "A11"]
[WhiteElo "2400"]
[BlackElo "2353"]
[Annotator "TA"]
[PlyCount "53"]
[EventDate "2023.10.14"]
[EventCountry "CZE"]
[SourceTitle "playchess.com"]
[Source "ChessBase"]
[SourceQuality "1"]
[TimeControl "40/5400+30:1800+30"]

{[%evp 13,53,4,11,10,27,23,27,41,31,29,26,22,22,8,28,0,34,27,45,26,62,41,45,32,154,163,159,109,156,151,251,252,339,359,344,354,357,347,359,424,464,461]} 1. Nf3 {[%emt 0:00:02]} d5 {[%emt 0:00:30]} 2. g3 {[%emt 0:00:05]} Nf6 {[%emt 0:00:13]} 3. Bg2 {[%emt 0:00:06]} c6 {[%emt 0:02:40]} 4. O-O {[%emt 0:00:50]} Bf5 {[%emt 0:00:11]} 5. c4 {[%emt 0:00:34]} e6 {[%emt 0:00:20][%cal Be7e6,Be6d5][%mdl 32]} 6. cxd5 {[%emt 0:00:42]} exd5 {[%emt 0:06:09]} 7. d3 {[%emt 0:01:13]} Be7 {[%emt 0:01:23]} 8. Qb3 {[%emt 0:00:52]} Qc8 {[%emt 0:11:55] [#]} 9. e4 $1 {[%emt 0:02:23]} dxe4 {[%emt 0:02:03]} 10. Nd4 {[%emt 0:00:39] Nxf5 is the strong threat. White has an edge.} Bg6 {[%emt 0:06:54]} 11. dxe4 {[%emt 0:00:39]} O-O {[%emt 0:04:10] [#]} 12. Nf5 $1 {[%emt 0:02:58]} Bxf5 {[%emt 0:06:38]} 13. exf5 {[%emt 0:00:06]} Na6 {[%emt 0:11:01][%cal Of8d8]} 14. a3 {[%emt 0:12:01]} Nc5 {[%emt 0:11:43]} (14... Qxf5 $5 15. Qxb7 Nc5 16. Qxe7 Nb3 $14) 15. Qc2 {[%emt 0:02:12]} Rd8 {[%emt 0:01:19]} 16. Be3 {[%emt 0:07:19]} Nd3 {[%emt 0:04:04]} 17. Rd1 $1 {[%emt 0:01:22]} Ne5 {[%emt 0:00:49]} (17... Qxf5 $2 18. Bf1 $18) 18. Bd4 {[%emt 0:02:38] A strong pair of Bishops.} Neg4 {[%emt 0:11:02]} (18... Qc7 $14) 19. h3 $16 {[%emt 0:07:24]} Nh6 {[%emt 0:00:11]} 20. g4 {[%emt 0:01:37]} Nd5 {[%emt 0:00:57]} ({Better is} 20... Kh8 21. Nc3 Kg8) 21. Nc3 {[%emt 0:07:19] White is more active.} Nf4 {[%emt 0:03:38]} (21... Nxc3 $16 {was worth a try.} 22. Qxc3 (22. Bxc3 Qc7 $16) 22... f6) 22. Qe4 $18 {[%emt 0:07:59]} Bd6 {[%emt 0:02:10] [#]} 23. Bxg7 $1 {[%emt 0:02:53][%mdl 512]} Kxg7 {[%emt 0:00:52] [#]} 24. Rxd6 $1 {[%emt 0:01:31][%mdl 512]} Rxd6 {[%emt 0:00:11]} ({Wrong is} 24... Nxh3+ $2 25. Bxh3 Rxd6 26. Qe5+ (26. g5 Qd8 $18) 26... f6 27. Qxd6 $18) 25. Qe5+ {[%emt 0:01:00]} ({Less strong is} 25. Qxf4 Qf8 26. g5 Nxf5 $18) 25... Rf6 {[%emt 0:00:04] Threatens to win with ...Qb8.} 26. Qxf4 {[%emt 0:00:57]} Nxf5 {[%emt 0:05:00]} 27. Ne4 $1 {[%emt 0:01:18] Weighted Error Value: White=0.03 (flawless) /Black=0.32.  Mistake:       	---       	Black=3      Inaccurate:     	White=1     	Black=3      OK:         	White=8     	Black=6      Best:        	White=2     	---        Strong:       	White=2     	---        Brilliant:      	White=2     	---} (27. gxf5 Qxf5 28. Qxf5 Rxf5 $16) 1-0

[Event "Czech Extraliga 2023-24"]
[Site "Czech Republic"]
[Date "2024.04.07"]
[Round "11.6"]
[White "Rydl, Jiri"]
[Black "Biolek, Richard Jr."]
[Result "1/2-1/2"]
[ECO "E05"]
[WhiteElo "2397"]
[BlackElo "2418"]
[Annotator "TA"]
[PlyCount "59"]
[EventDate "2023.10.14"]
[EventCountry "CZE"]
[SourceTitle "playchess.com"]
[Source "ChessBase"]
[SourceQuality "1"]
[TimeControl "40/5400+30:1800+30"]

{[%evp 13,59,17,0,25,32,16,27,18,33,25,16,28,22,6,7,14,13,2,40,0,0,0,0,0,0,0,0,0,0,0,-10,-8,0,0,0,0,0,-28,-29,-36,0,-43,-44,-46,-64,-119,-125,-132]} 1. c4 {[%emt 0:00:46]} e6 {[%emt 0:00:04]} 2. g3 {[%emt 0:00:26]} Nf6 {[%emt 0:00:05]} 3. Bg2 {[%emt 0:00:04]} d5 {[%emt 0:00:03]} 4. Nf3 {[%emt 0:00:20]} Be7 {[%emt 0:00:04]} 5. O-O {[%emt 0:00:12]} O-O {[%emt 0:00:03]} 6. d4 {[%emt 0:02:09]} dxc4 {[%emt 0:00:27]} 7. Qc2 {[%emt 0:00:28]} b5 {[%emt 0:00:07]} 8. a4 {[%emt 0:04:24]} Bb7 {[%emt 0:00:07]} 9. axb5 {[%emt 0:03:21]} a6 {[%emt 0:01:20]} 10. Nc3 {[%emt 0:09:11] Repels Be4. White has an edge.} (10. Qxc4 $2 {is the wrong capture.} axb5 11. Qxb5 Bc6 (11... Rxa1 $2 12. Qxb7 Rxb1 13. Qa8 $19) 12. Rxa8 Bxb5 $19) 10... axb5 {[%emt 0:00:06]} 11. Rxa8 {[%emt 0:00:05]} Bxa8 {[%emt 0:00:01]} 12. Nxb5 {[%emt 0:00:45]} Bd5 {[%emt 0:00:03]} 13. Nc3 {[%emt 0:13:59]} Bxf3 {[%emt 0:00:26]} 14. Bxf3 {[%emt 0:00:36]} Qxd4 {[%emt 0:00:04]} 15. Rd1 {[%emt 0:13:44]} Qe5 {[%emt 0:00:02]} 16. Bf4 {[%emt 0:01:01]} Qa5 {[%emt 0:04:53]} 17. Qa4 {[%emt 0:13:49]} Qxa4 {[%emt 0:21:17]} 18. Nxa4 {[%emt 0:00:05]} Rd8 {[%emt 0:00:02]} 19. Rc1 {[%emt 0:00:12]} Bd6 {[%emt 0:05:36]} 20. Rxc4 {[%emt 0:01:35]} Nbd7 {[%emt 0:00:03]} 21. Bxd6 {[%emt 0:07:25]} cxd6 {[%emt 0:00:26]} 22. Bb7 {[%emt 0:00:05]} d5 {[%emt 0:08:21]} 23. Rc6 {[%emt 0:04:40]} Ne8 {[%emt 0:21:18]} 24. f4 {[%emt 0:03:19]} Rb8 {[%emt 0:00:26]} 25. Bc8 {[%emt 0:00:31]} Ndf6 {[%emt 0:03:56]} 26. Nb6 {[%emt 0:00:19]} Kf8 {[%emt 0:05:12]} 27. b4 {[%emt 0:00:47]} Ke7 {[%emt 0:03:47]} 28. Ba6 {[%emt 0:03:13]} Nd6 {[%emt 0:05:43]} 29. Rc7+ {[%emt 0:03:25]} (29. b5 $15) 29... Kd8 $17 {[%emt 0:00:32]} 30. Rc6 {[%emt 0:00:10] Weighted Error Value: White=0.10 (very precise) /Black=0.05 (flawless) .  Mistake:       	White=1     	---        Inaccurate:     	White=3     	Black=2      OK:         	White=7     	Black=10     Best:        	White=2     	Black=2} 1/2-1/2